[Event "Titled Tuesday Blitz December 20 Early 2022"]
[White "Iskusnyh, Sergei"]
[Black "Karjakin, Sergey"]
[WhiteFideId "4120027"]
[BlackFideId "14109603"]
[WhiteElo "2440"]
[BlackElo "2747"]
[Result "0-1"]
[Round "02"]
[TimeControl "180+2"]
[Date "2022.12.20"]
[WhiteClock "0:00:05"]
[BlackClock "0:00:57"]

1. d4 {[%clk 0:02:59]}  Nf6 {[%clk 0:02:59]} 2. c4 {[%clk 0:02:57]}  e6 {[%clk 0:03:00]} 3. g3 {[%clk 0:02:57]}  d5 {[%clk 0:02:55]} 4. Bg2 {[%clk 0:02:56]}  Bb4+ {[%clk 0:02:54]} 5. Bd2 {[%clk 0:02:54]}  a5 {[%clk 0:02:54]} 6. a3 {[%clk 0:02:48]}  Be7 {[%clk 0:02:31]} 7. Nf3 {[%clk 0:02:47]}  O-O {[%clk 0:02:27]} 8. Qc2 {[%clk 0:02:39]}  c6 {[%clk 0:02:27]} 9. Bg5 {[%clk 0:02:36]}  b6 {[%clk 0:02:26]} 10. Nbd2 {[%clk 0:02:35]}  Nbd7 {[%clk 0:02:25]} 11. e4 {[%clk 0:02:31]}  Ba6 {[%clk 0:02:25]} 12. e5 {[%clk 0:01:49]}  Ne8 {[%clk 0:02:23]} 13. Bxe7 {[%clk 0:01:46]}  Qxe7 {[%clk 0:02:24]} 14. O-O {[%clk 0:01:39]}  Nc7 {[%clk 0:02:23]} 15. Rfe1 {[%clk 0:01:35]}  c5 {[%clk 0:02:20]} 16. cxd5 {[%clk 0:01:31]}  Nxd5 {[%clk 0:02:19]} 17. Ne4 {[%clk 0:01:26]}  Rac8 {[%clk 0:02:14]} 18. Neg5 {[%clk 0:01:13]}  g6 {[%clk 0:02:11]} 19. Qe4 {[%clk 0:01:12]}  Kg7 {[%clk 0:01:58]} 20. Qh4 {[%clk 0:01:07]}  h6 {[%clk 0:01:50]} 21. Ne4 {[%clk 0:00:59]}  Qxh4 {[%clk 0:01:49]} 22. Nxh4 {[%clk 0:00:58]}  cxd4 {[%clk 0:01:48]} 23. Nd6 {[%clk 0:00:58]}  Rc2 {[%clk 0:01:46]} 24. Rad1 {[%clk 0:00:44]}  d3 {[%clk 0:01:40]} 25. Bxd5 {[%clk 0:00:38]}  d2 {[%clk 0:01:35]} 26. Re4 {[%clk 0:00:20]}  Rc1 {[%clk 0:01:35]} 27. Bb3 {[%clk 0:00:19]}  Nc5 {[%clk 0:01:35]} 28. Rd4 {[%clk 0:00:17]}  Nxb3 {[%clk 0:01:27]} 29. Rxd2 {[%clk 0:00:17]}  Rc5 {[%clk 0:01:21]} 30. Rd3 {[%clk 0:00:11]}  Bxd3 {[%clk 0:01:15]} 31. Rxd3 {[%clk 0:00:12]}  a4 {[%clk 0:01:16]} 32. Nf3 {[%clk 0:00:12]}  Rc2 {[%clk 0:01:06]} 33. Re3 {[%clk 0:00:09]}  Rxb2 {[%clk 0:01:04]} 34. Re4 {[%clk 0:00:10]}  Nc5 {[%clk 0:01:03]} 35. Rf4 {[%clk 0:00:07]}  Nd3 {[%clk 0:01:01]} 36. Rc4 {[%clk 0:00:05]}  Rxf2 {[%clk 0:00:57]} 37. Rc7 {[%clk 0:00:05]}  Rxf3 {[%clk 0:00:57]} 0-1


[Site "https://www.chess.com"]

[Event "Titled Tuesday Blitz December 20 Early 2022"]
[White "Jabborov, Sanjar"]
[Black "Luks, Artur"]
[WhiteFideId "14219263"]
[BlackFideId "21808856"]
[WhiteElo "1449"]
[BlackElo "1577"]
[Result "1-0"]
[Round "02"]
[TimeControl "180+2"]
[Date "2022.12.20"]
[WhiteClock "0:00:22"]
[BlackClock "0:00:07"]

1. e4 {[%clk 0:03:00]}  e6 {[%clk 0:02:53]} 2. d4 {[%clk 0:03:00]}  d5 {[%clk 0:02:53]} 3. Nc3 {[%clk 0:02:59]}  Bb4 {[%clk 0:02:52]} 4. e5 {[%clk 0:02:59]}  Ne7 {[%clk 0:02:52]} 5. a3 {[%clk 0:02:57]}  Bxc3+ {[%clk 0:02:52]} 6. bxc3 {[%clk 0:02:57]}  c5 {[%clk 0:02:53]} 7. Nf3 {[%clk 0:02:53]}  Bd7 {[%clk 0:02:52]} 8. a4 {[%clk 0:02:53]}  Qa5 {[%clk 0:02:51]} 9. Bd2 {[%clk 0:02:52]}  Nbc6 {[%clk 0:02:51]} 10. Bd3 {[%clk 0:02:51]}  c4 {[%clk 0:02:50]} 11. Be2 {[%clk 0:02:50]}  f6 {[%clk 0:02:49]} 12. exf6 {[%clk 0:02:49]}  gxf6 {[%clk 0:02:49]} 13. O-O {[%clk 0:02:49]}  O-O-O {[%clk 0:02:49]} 14. Qc1 {[%clk 0:02:47]}  e5 {[%clk 0:02:45]} 15. Qa3 {[%clk 0:02:43]}  Qc7 {[%clk 0:02:32]} 16. a5 {[%clk 0:02:38]}  e4 {[%clk 0:02:22]} 17. Nh4 {[%clk 0:02:34]}  Ng6 {[%clk 0:02:22]} 18. g3 {[%clk 0:02:29]}  Nxh4 {[%clk 0:02:22]} 19. Bf4 {[%clk 0:02:29]}  Ne5 {[%clk 0:02:12]} 20. dxe5 {[%clk 0:02:22]}  fxe5 {[%clk 0:02:11]} 21. Be3 {[%clk 0:02:15]}  Nf3+ {[%clk 0:02:03]} 22. Bxf3 {[%clk 0:02:11]}  exf3 {[%clk 0:02:03]} 23. Bxa7 {[%clk 0:02:10]}  Bc6 {[%clk 0:02:03]} 24. a6 {[%clk 0:02:07]}  b6 {[%clk 0:02:00]} 25. Bxb6 {[%clk 0:02:03]}  Qxb6 {[%clk 0:01:53]} 26. a7 {[%clk 0:02:02]}  Ba8 {[%clk 0:01:51]} 27. Rfb1 {[%clk 0:02:01]}  Qc6 {[%clk 0:01:47]} 28. Qe7 {[%clk 0:02:00]}  Qd7 {[%clk 0:01:43]} 29. Rb8+ {[%clk 0:01:55]}  Kc7 {[%clk 0:01:44]} 30. Qxe5+ {[%clk 0:01:36]}  Qd6 {[%clk 0:01:23]} 31. Qg7+ {[%clk 0:01:35]}  Qd7 {[%clk 0:01:22]} 32. Qe5+ {[%clk 0:01:14]}  Qd6 {[%clk 0:01:23]} 33. Qd4 {[%clk 0:01:05]}  Rxb8 {[%clk 0:01:12]} 34. axb8=Q+ {[%clk 0:01:05]}  Rxb8 {[%clk 0:01:12]} 35. Qg7+ {[%clk 0:01:04]}  Qd7 {[%clk 0:01:04]} 36. Qd4 {[%clk 0:01:00]}  Bc6 {[%clk 0:00:58]} 37. Qf4+ {[%clk 0:00:55]}  Qd6 {[%clk 0:00:34]} 38. Qxf3 {[%clk 0:00:55]}  d4 {[%clk 0:00:31]} 39. Qf7+ {[%clk 0:00:55]}  Kd8 {[%clk 0:00:22]} 40. Qxc4 {[%clk 0:00:42]}  dxc3 {[%clk 0:00:22]} 41. Qg4 {[%clk 0:00:27]}  Qd5 {[%clk 0:00:19]} 42. Rd1 {[%clk 0:00:27]}  Rb1 {[%clk 0:00:19]} 43. Qg8+ {[%clk 0:00:23]}  Kc7 {[%clk 0:00:07]} 44. Qxd5 {[%clk 0:00:22]} 1-0


[Site "https://www.chess.com"]

[Event "Titled Tuesday Blitz December 20 Early 2022"]
[White "JohnWhite1952"]
[Black "SaiHanThiha"]
[WhiteElo "1978"]
[BlackElo "2429"]
[Result "0-1"]
[Round "02"]
[TimeControl "180+2"]
[Date "2022.12.20"]
[WhiteClock "0:00:02"]
[BlackClock "0:00:15"]

1. e4 {[%clk 0:02:58]}  c6 {[%clk 0:03:00]} 2. d3 {[%clk 0:02:56]}  d5 {[%clk 0:03:00]} 3. Nd2 {[%clk 0:02:56]}  e5 {[%clk 0:03:01]} 4. Ngf3 {[%clk 0:02:54]}  Bd6 {[%clk 0:03:01]} 5. g3 {[%clk 0:02:53]}  Nf6 {[%clk 0:03:02]} 6. Bg2 {[%clk 0:02:52]}  O-O {[%clk 0:03:02]} 7. O-O {[%clk 0:02:51]}  Re8 {[%clk 0:03:03]} 8. Qe2 {[%clk 0:02:44]}  Nbd7 {[%clk 0:03:03]} 9. Nb3 {[%clk 0:02:14]}  d4 {[%clk 0:02:52]} 10. Bg5 {[%clk 0:02:11]}  h6 {[%clk 0:02:51]} 11. Bd2 {[%clk 0:02:08]}  c5 {[%clk 0:02:51]} 12. c4 {[%clk 0:02:04]}  Rb8 {[%clk 0:02:32]} 13. a4 {[%clk 0:01:56]}  Nf8 {[%clk 0:02:27]} 14. a5 {[%clk 0:01:54]}  b5 {[%clk 0:02:21]} 15. axb6 {[%clk 0:01:15]}  axb6 {[%clk 0:02:22]} 16. Ra2 {[%clk 0:01:09]}  b5 {[%clk 0:02:22]} 17. Na5 {[%clk 0:01:02]}  Qb6 {[%clk 0:02:19]} 18. Rfa1 {[%clk 0:00:58]}  Be6 {[%clk 0:02:17]} 19. b3 {[%clk 0:00:53]}  b4 {[%clk 0:02:11]} 20. Nh4 {[%clk 0:00:43]}  Ra8 {[%clk 0:02:07]} 21. Nf5 {[%clk 0:00:26]}  Ra7 {[%clk 0:02:00]} 22. Nxd6 {[%clk 0:00:25]}  Qxd6 {[%clk 0:02:00]} 23. f4 {[%clk 0:00:23]}  Bg4 {[%clk 0:01:32]} 24. Qf2 {[%clk 0:00:18]}  N6d7 {[%clk 0:00:54]} 25. fxe5 {[%clk 0:00:14]}  Nxe5 {[%clk 0:00:53]} 26. Bf4 {[%clk 0:00:13]}  Nfg6 {[%clk 0:00:45]} 27. Qd2 {[%clk 0:00:08]}  Qb6 {[%clk 0:00:35]} 28. h3 {[%clk 0:00:06]}  Bxh3 {[%clk 0:00:21]} 29. Kh2 {[%clk 0:00:04]}  Bxg2 {[%clk 0:00:18]} 30. Kxg2 {[%clk 0:00:04]}  Rea8 {[%clk 0:00:19]} 31. Bxe5 {[%clk 0:00:02]}  Nxe5 {[%clk 0:00:18]} 32. Qf4 {[%clk 0:00:02]}  f6 {[%clk 0:00:15]} 0-1


[Site "https://www.chess.com"]

[Event "Titled Tuesday Blitz December 20 Early 2022"]
[White "Jovanovic, Dobrica"]
[Black "forevery0ung"]
[WhiteFideId "928674"]
[WhiteElo "2164"]
[BlackElo "2661"]
[Result "0-1"]
[Round "02"]
[TimeControl "180+2"]
[Date "2022.12.20"]
[WhiteClock "0:00:19"]
[BlackClock "0:00:18"]

1. e4 {[%clk 0:03:00]}  e6 {[%clk 0:02:56]} 2. d4 {[%clk 0:02:58]}  d5 {[%clk 0:02:56]} 3. e5 {[%clk 0:02:57]}  Bd7 {[%clk 0:02:54]} 4. f4 {[%clk 0:02:51]}  c5 {[%clk 0:02:52]} 5. Nf3 {[%clk 0:02:46]}  Qb6 {[%clk 0:02:53]} 6. c3 {[%clk 0:02:42]}  Bb5 {[%clk 0:02:52]} 7. Qb3 {[%clk 0:02:23]}  Bxf1 {[%clk 0:02:46]} 8. Qxb6 {[%clk 0:02:24]}  axb6 {[%clk 0:02:46]} 9. Rxf1 {[%clk 0:02:22]}  c4 {[%clk 0:02:47]} 10. g4 {[%clk 0:02:17]}  b5 {[%clk 0:02:46]} 11. f5 {[%clk 0:01:52]}  Nc6 {[%clk 0:02:46]} 12. fxe6 {[%clk 0:01:45]}  fxe6 {[%clk 0:02:45]} 13. Ng5 {[%clk 0:01:46]}  Nd8 {[%clk 0:02:46]} 14. Na3 {[%clk 0:01:34]}  Bxa3 {[%clk 0:02:22]} 15. bxa3 {[%clk 0:01:35]}  Ne7 {[%clk 0:02:20]} 16. Rb1 {[%clk 0:01:31]}  Ra5 {[%clk 0:02:18]} 17. Nh3 {[%clk 0:00:46]}  h5 {[%clk 0:02:16]} 18. g5 {[%clk 0:00:45]}  Ng6 {[%clk 0:02:07]} 19. Nf4 {[%clk 0:00:43]}  Nxf4 {[%clk 0:02:07]} 20. Rxf4 {[%clk 0:00:42]}  Kd7 {[%clk 0:01:47]} 21. Bb2 {[%clk 0:00:28]}  Ke7 {[%clk 0:01:42]} 22. Ke2 {[%clk 0:00:23]}  Rf8 {[%clk 0:01:36]} 23. Rbf1 {[%clk 0:00:22]}  Rxf4 {[%clk 0:01:36]} 24. Rxf4 {[%clk 0:00:23]}  Nf7 {[%clk 0:01:32]} 25. Rh4 {[%clk 0:00:16]}  g6 {[%clk 0:01:31]} 26. Bc1 {[%clk 0:00:16]}  Ra8 {[%clk 0:01:26]} 27. Rh3 {[%clk 0:00:15]}  Nh8 {[%clk 0:01:17]} 28. Rf3 {[%clk 0:00:14]}  Rf8 {[%clk 0:01:09]} 29. Rf6 {[%clk 0:00:14]}  Rg8 {[%clk 0:00:59]} 30. Kd2 {[%clk 0:00:13]}  Nf7 {[%clk 0:00:58]} 31. Kc2 {[%clk 0:00:12]}  Nd8 {[%clk 0:00:58]} 32. a4 {[%clk 0:00:11]}  bxa4 {[%clk 0:00:54]} 33. Ba3+ {[%clk 0:00:12]}  Ke8 {[%clk 0:00:54]} 34. h4 {[%clk 0:00:11]}  Rg7 {[%clk 0:00:48]} 35. Bd6 {[%clk 0:00:10]}  Kd7 {[%clk 0:00:45]} 36. Bb4 {[%clk 0:00:10]}  Nc6 {[%clk 0:00:39]} 37. Ba3 {[%clk 0:00:07]}  b5 {[%clk 0:00:35]} 38. Bf8 {[%clk 0:00:07]}  Rg8 {[%clk 0:00:34]} 39. Rf7+ {[%clk 0:00:08]}  Ke8 {[%clk 0:00:32]} 40. Rc7 {[%clk 0:00:08]}  Rxf8 {[%clk 0:00:26]} 41. Rxc6 {[%clk 0:00:08]}  Rf2+ {[%clk 0:00:27]} 42. Kc1 {[%clk 0:00:08]}  Kd7 {[%clk 0:00:23]} 43. Rd6+ {[%clk 0:00:07]}  Ke7 {[%clk 0:00:24]} 44. Rb6 {[%clk 0:00:08]}  Rxa2 {[%clk 0:00:22]} 45. Rxb5 {[%clk 0:00:08]}  Rh2 {[%clk 0:00:13]} 46. Rb7+ {[%clk 0:00:09]}  Kd8 {[%clk 0:00:12]} 47. Rb8+ {[%clk 0:00:08]}  Kd7 {[%clk 0:00:13]} 48. Rg8 {[%clk 0:00:08]}  Rxh4 {[%clk 0:00:12]} 49. Rg7+ {[%clk 0:00:09]}  Ke8 {[%clk 0:00:11]} 50. Rxg6 {[%clk 0:00:10]}  Kf7 {[%clk 0:00:11]} 51. Rf6+ {[%clk 0:00:10]}  Ke7 {[%clk 0:00:12]} 52. Rh6 {[%clk 0:00:10]}  a3 {[%clk 0:00:12]} 53. Rh7+ {[%clk 0:00:10]}  Kf8 {[%clk 0:00:11]} 54. Kb1 {[%clk 0:00:11]}  Rh2 {[%clk 0:00:11]} 55. g6 {[%clk 0:00:10]}  h4 {[%clk 0:00:11]} 56. Rf7+ {[%clk 0:00:10]}  Kg8 {[%clk 0:00:11]} 57. Re7 {[%clk 0:00:10]}  h3 {[%clk 0:00:11]} 58. Rxe6 {[%clk 0:00:11]}  Rg2 {[%clk 0:00:11]} 59. g7 {[%clk 0:00:10]}  h2 {[%clk 0:00:10]} 60. Rh6 {[%clk 0:00:11]}  Rg1+ {[%clk 0:00:10]} 61. Ka2 {[%clk 0:00:12]}  h1=Q {[%clk 0:00:11]} 62. Rxh1 {[%clk 0:00:12]}  Rxh1 {[%clk 0:00:11]} 63. Kxa3 {[%clk 0:00:12]}  Kxg7 {[%clk 0:00:12]} 64. Kb4 {[%clk 0:00:13]}  Kf7 {[%clk 0:00:10]} 65. Kc5 {[%clk 0:00:14]}  Ke6 {[%clk 0:00:11]} 66. Kc6 {[%clk 0:00:13]}  Rb1 {[%clk 0:00:11]} 67. Kc5 {[%clk 0:00:14]}  Rb3 {[%clk 0:00:11]} 68. Kc6 {[%clk 0:00:14]}  Rxc3 {[%clk 0:00:12]} 69. Kc5 {[%clk 0:00:15]}  Rd3 {[%clk 0:00:13]} 70. Kc6 {[%clk 0:00:16]}  Rxd4 {[%clk 0:00:13]} 71. Kc5 {[%clk 0:00:17]}  Rd3 {[%clk 0:00:14]} 72. Kc6 {[%clk 0:00:18]}  c3 {[%clk 0:00:15]} 73. Kc5 {[%clk 0:00:19]}  c2 {[%clk 0:00:16]} 74. Kc6 {[%clk 0:00:20]}  c1=Q+ {[%clk 0:00:16]} 75. Kb5 {[%clk 0:00:18]}  Rb3+ {[%clk 0:00:17]} 76. Ka6 {[%clk 0:00:19]}  Qa3# {[%clk 0:00:18]} 0-1


[Site "https://www.chess.com"]

[Event "Titled Tuesday Blitz December 20 Early 2022"]
[White "KerryStead"]
[Black "Schattmann, Alfred"]
[BlackFideId "4662377"]
[WhiteElo "2033"]
[BlackElo "1746"]
[Result "0-1"]
[Round "02"]
[TimeControl "180+2"]
[Date "2022.12.20"]
[WhiteClock "0:00:02"]
[BlackClock "0:00:44"]

1. d4 {[%clk 0:03:00]}  Nf6 {[%clk 0:02:57]} 2. f3 {[%clk 0:03:00]}  d5 {[%clk 0:02:56]} 3. e4 {[%clk 0:03:01]}  dxe4 {[%clk 0:02:56]} 4. Nc3 {[%clk 0:03:01]}  e5 {[%clk 0:02:55]} 5. dxe5 {[%clk 0:02:59]}  Qxd1+ {[%clk 0:02:48]} 6. Kxd1 {[%clk 0:03:00]}  Nfd7 {[%clk 0:02:46]} 7. Nd5 {[%clk 0:03:01]}  Nxe5 {[%clk 0:02:26]} 8. Nxc7+ {[%clk 0:02:59]}  Kd8 {[%clk 0:02:27]} 9. Nxa8 {[%clk 0:03:00]}  exf3 {[%clk 0:02:27]} 10. Nxf3 {[%clk 0:03:00]}  Nxf3 {[%clk 0:02:27]} 11. gxf3 {[%clk 0:03:01]}  Nc6 {[%clk 0:02:23]} 12. Bf4 {[%clk 0:03:00]}  f6 {[%clk 0:02:19]} 13. Bb5 {[%clk 0:02:57]}  g5 {[%clk 0:02:18]} 14. Bg3 {[%clk 0:02:56]}  h5 {[%clk 0:02:16]} 15. h4 {[%clk 0:02:56]}  g4 {[%clk 0:02:11]} 16. Bxc6 {[%clk 0:02:25]}  bxc6 {[%clk 0:02:09]} 17. fxg4 {[%clk 0:02:25]}  Bxg4+ {[%clk 0:02:08]} 18. Kc1 {[%clk 0:02:25]}  Bh6+ {[%clk 0:02:02]} 19. Kb1 {[%clk 0:02:25]}  f5 {[%clk 0:02:02]} 20. Be5 {[%clk 0:02:05]}  Re8 {[%clk 0:01:58]} 21. Bf6+ {[%clk 0:01:45]}  Kd7 {[%clk 0:01:50]} 22. a4 {[%clk 0:01:30]}  Rxa8 {[%clk 0:01:45]} 23. Re1 {[%clk 0:01:29]}  f4 {[%clk 0:01:36]} 24. Re7+ {[%clk 0:01:20]}  Kd6 {[%clk 0:01:36]} 25. Ka2 {[%clk 0:01:07]}  Rf8 {[%clk 0:01:28]} 26. Rxa7 {[%clk 0:00:39]}  Rxf6 {[%clk 0:01:25]} 27. a5 {[%clk 0:00:29]}  f3 {[%clk 0:01:25]} 28. Rf1 {[%clk 0:00:21]}  f2 {[%clk 0:01:25]} 29. a6 {[%clk 0:00:18]}  Be3 {[%clk 0:01:22]} 30. Rb7 {[%clk 0:00:16]}  Rf5 {[%clk 0:01:16]} 31. b4 {[%clk 0:00:15]}  Be2 {[%clk 0:01:11]} 32. Rxf2 {[%clk 0:00:14]}  Rxf2 {[%clk 0:01:07]} 33. a7 {[%clk 0:00:15]}  Bxa7 {[%clk 0:01:06]} 34. Rxa7 {[%clk 0:00:14]}  Bd3 {[%clk 0:01:01]} 35. Rg7 {[%clk 0:00:11]}  Rxc2+ {[%clk 0:00:57]} 36. Kb3 {[%clk 0:00:11]}  Rh2 {[%clk 0:00:55]} 37. Rg5 {[%clk 0:00:10]}  Rxh4 {[%clk 0:00:53]} 38. Kc3 {[%clk 0:00:10]}  Bb5 {[%clk 0:00:51]} 39. Rg6+ {[%clk 0:00:09]}  Kc7 {[%clk 0:00:51]} 40. Rh6 {[%clk 0:00:07]}  Kb6 {[%clk 0:00:51]} 41. Rh7 {[%clk 0:00:05]}  Rh1 {[%clk 0:00:49]} 42. Rh6 {[%clk 0:00:05]}  h4 {[%clk 0:00:50]} 43. Rh5 {[%clk 0:00:05]}  h3 {[%clk 0:00:50]} 44. Kb2 {[%clk 0:00:05]}  Bc4 {[%clk 0:00:44]} 45. Kc3 {[%clk 0:00:03]}  Bd5 {[%clk 0:00:44]} 46. Kb2 {[%clk 0:00:03]}  Kb5 {[%clk 0:00:44]} 47. Rh4 {[%clk 0:00:02]} 0-1


[Site "https://www.chess.com"]

[Event "Titled Tuesday Blitz December 20 Early 2022"]
[White "Kildepiotr"]
[Black "Boudreaux, Floyd"]
[BlackFideId "2016370"]
[WhiteElo "2682"]
[BlackElo "2088"]
[Result "1-0"]
[Round "02"]
[TimeControl "180+2"]
[Date "2022.12.20"]
[WhiteClock "0:00:51"]
[BlackClock "0:00:01"]

1. Nf3 {[%clk 0:02:56]}  Nf6 {[%clk 0:02:56]} 2. g3 {[%clk 0:02:57]}  d5 {[%clk 0:02:53]} 3. Bg2 {[%clk 0:02:57]}  e6 {[%clk 0:02:54]} 4. O-O {[%clk 0:02:57]}  Be7 {[%clk 0:02:55]} 5. d3 {[%clk 0:02:58]}  O-O {[%clk 0:02:50]} 6. Nbd2 {[%clk 0:02:58]}  c5 {[%clk 0:02:49]} 7. e4 {[%clk 0:02:59]}  Nc6 {[%clk 0:02:47]} 8. Qe2 {[%clk 0:02:58]}  b5 {[%clk 0:02:39]} 9. e5 {[%clk 0:02:58]}  Nd7 {[%clk 0:02:38]} 10. c3 {[%clk 0:02:59]}  Qc7 {[%clk 0:02:21]} 11. Re1 {[%clk 0:02:58]}  Bb7 {[%clk 0:02:16]} 12. h4 {[%clk 0:02:57]}  Rfc8 {[%clk 0:02:13]} 13. Nf1 {[%clk 0:02:57]}  Qd8 {[%clk 0:02:09]} 14. Bg5 {[%clk 0:02:50]}  h6 {[%clk 0:02:05]} 15. Bxe7 {[%clk 0:02:49]}  Qxe7 {[%clk 0:01:57]} 16. N1h2 {[%clk 0:02:50]}  a5 {[%clk 0:01:49]} 17. Ng4 {[%clk 0:02:44]}  Kh8 {[%clk 0:01:38]} 18. h5 {[%clk 0:02:41]}  a4 {[%clk 0:01:35]} 19. a3 {[%clk 0:02:41]}  Na5 {[%clk 0:01:24]} 20. Rad1 {[%clk 0:02:31]}  Nb3 {[%clk 0:01:14]} 21. Qe3 {[%clk 0:02:28]}  Qf8 {[%clk 0:01:04]} 22. Qf4 {[%clk 0:02:22]}  Rab8 {[%clk 0:00:42]} 23. Bh3 {[%clk 0:02:14]}  Ba6 {[%clk 0:00:40]} 24. Nh4 {[%clk 0:02:11]}  Rb6 {[%clk 0:00:39]} 25. Ne3 {[%clk 0:02:08]}  d4 {[%clk 0:00:35]} 26. Nc2 {[%clk 0:01:37]}  dxc3 {[%clk 0:00:29]} 27. bxc3 {[%clk 0:01:37]}  Bb7 {[%clk 0:00:30]} 28. Kh2 {[%clk 0:01:30]}  Kh7 {[%clk 0:00:23]} 29. Re3 {[%clk 0:01:18]}  Qe7 {[%clk 0:00:23]} 30. Nf5 {[%clk 0:01:09]}  exf5 {[%clk 0:00:17]} 31. Qxf5+ {[%clk 0:01:10]}  Kh8 {[%clk 0:00:15]} 32. Qxd7 {[%clk 0:01:10]}  Qxd7 {[%clk 0:00:13]} 33. Bxd7 {[%clk 0:01:11]}  Rd8 {[%clk 0:00:13]} 34. Bf5 {[%clk 0:01:09]}  g6 {[%clk 0:00:07]} 35. hxg6 {[%clk 0:01:04]}  fxg6 {[%clk 0:00:08]} 36. Bh3 {[%clk 0:01:04]}  h5 {[%clk 0:00:07]} 37. e6 {[%clk 0:01:02]}  Re8 {[%clk 0:00:05]} 38. e7 {[%clk 0:01:02]}  Bc6 {[%clk 0:00:04]} 39. d4 {[%clk 0:00:55]}  cxd4 {[%clk 0:00:02]} 40. Nxd4 {[%clk 0:00:56]}  Nxd4 {[%clk 0:00:01]} 41. Rxd4 {[%clk 0:00:57]}  Kg7 {[%clk 0:00:01]} 42. Rd6 {[%clk 0:00:51]} 1-0


[Site "https://www.chess.com"]

[Event "Titled Tuesday Blitz December 20 Early 2022"]
[White "Kotofeyca"]
[Black "Emily_Dawn"]
[WhiteElo "2372"]
[BlackElo "1878"]
[Result "1-0"]
[Round "02"]
[TimeControl "180+2"]
[Date "2022.12.20"]
[WhiteClock "0:00:19"]
[BlackClock "0:00:27"]

1. d4 {[%clk 0:03:00]}  Nf6 {[%clk 0:02:58]} 2. c4 {[%clk 0:03:00]}  e6 {[%clk 0:02:57]} 3. Nf3 {[%clk 0:03:01]}  d5 {[%clk 0:02:55]} 4. Nc3 {[%clk 0:03:01]}  Bb4 {[%clk 0:02:54]} 5. Qa4+ {[%clk 0:02:58]}  Nc6 {[%clk 0:02:53]} 6. Ne5 {[%clk 0:02:59]}  Bxc3+ {[%clk 0:02:52]} 7. bxc3 {[%clk 0:02:58]}  Bd7 {[%clk 0:02:51]} 8. Nxd7 {[%clk 0:02:51]}  Qxd7 {[%clk 0:02:51]} 9. e3 {[%clk 0:02:43]}  O-O {[%clk 0:02:48]} 10. Be2 {[%clk 0:02:35]}  Ne4 {[%clk 0:02:45]} 11. Qc2 {[%clk 0:02:27]}  e5 {[%clk 0:02:41]} 12. O-O {[%clk 0:02:23]}  f5 {[%clk 0:02:21]} 13. cxd5 {[%clk 0:02:16]}  Qxd5 {[%clk 0:02:20]} 14. c4 {[%clk 0:02:10]}  Qf7 {[%clk 0:02:15]} 15. Ba3 {[%clk 0:02:05]}  Rfd8 {[%clk 0:02:11]} 16. d5 {[%clk 0:02:03]}  Ne7 {[%clk 0:02:04]} 17. Bd3 {[%clk 0:02:02]}  Nd6 {[%clk 0:01:48]} 18. c5 {[%clk 0:01:52]}  Ne8 {[%clk 0:01:48]} 19. d6 {[%clk 0:01:00]}  cxd6 {[%clk 0:01:47]} 20. cxd6 {[%clk 0:01:00]}  Nxd6 {[%clk 0:01:33]} 21. Bxd6 {[%clk 0:00:58]}  Rxd6 {[%clk 0:01:33]} 22. Bc4 {[%clk 0:00:59]}  Nd5 {[%clk 0:01:33]} 23. Rad1 {[%clk 0:00:47]}  e4 {[%clk 0:01:17]} 24. Rd4 {[%clk 0:00:39]}  Rad8 {[%clk 0:01:16]} 25. Rfd1 {[%clk 0:00:39]}  Kh8 {[%clk 0:00:54]} 26. Qb3 {[%clk 0:00:39]}  Qf6 {[%clk 0:00:47]} 27. Bxd5 {[%clk 0:00:34]}  Qh4 {[%clk 0:00:38]} 28. g3 {[%clk 0:00:29]}  Qh5 {[%clk 0:00:37]} 29. Qxb7 {[%clk 0:00:21]}  Rh6 {[%clk 0:00:32]} 30. h4 {[%clk 0:00:19]}  g5 {[%clk 0:00:31]} 31. Bxe4 {[%clk 0:00:19]}  gxh4 {[%clk 0:00:29]} 32. Rxd8+ {[%clk 0:00:19]}  Qe8 {[%clk 0:00:27]} 33. Rxe8# {[%clk 0:00:19]} 1-0


[Site "https://www.chess.com"]

[Event "Titled Tuesday Blitz December 20 Early 2022"]
[White "Kucherov, Konstantin"]
[Black "ShahxaibKhan"]
[WhiteFideId "34136280"]
[WhiteElo "1983"]
[BlackElo "2382"]
[Result "1-0"]
[Round "02"]
[TimeControl "180+2"]
[Date "2022.12.20"]
[WhiteClock "0:00:30"]
[BlackClock "0:00:18"]

1. f4 {[%clk 0:03:00]}  d5 {[%clk 0:02:58]} 2. Nf3 {[%clk 0:03:00]}  g6 {[%clk 0:02:22]} 3. g3 {[%clk 0:02:58]}  Bg4 {[%clk 0:02:15]} 4. Bg2 {[%clk 0:02:57]}  Bg7 {[%clk 0:02:15]} 5. h3 {[%clk 0:02:53]}  Bf5 {[%clk 0:02:14]} 6. d3 {[%clk 0:02:50]}  Nf6 {[%clk 0:02:07]} 7. O-O {[%clk 0:02:48]}  d4 {[%clk 0:02:03]} 8. Qe1 {[%clk 0:02:43]}  Nd5 {[%clk 0:02:02]} 9. g4 {[%clk 0:02:35]}  Bd7 {[%clk 0:01:56]} 10. Na3 {[%clk 0:02:31]}  Bc6 {[%clk 0:01:54]} 11. Nc4 {[%clk 0:02:28]}  Nd7 {[%clk 0:01:52]} 12. Bd2 {[%clk 0:02:22]}  N7b6 {[%clk 0:01:50]} 13. Na5 {[%clk 0:02:21]}  O-O {[%clk 0:01:49]} 14. Nxc6 {[%clk 0:02:13]}  bxc6 {[%clk 0:01:49]} 15. Qf2 {[%clk 0:01:57]}  c5 {[%clk 0:01:44]} 16. Ng5 {[%clk 0:01:46]}  Rb8 {[%clk 0:01:38]} 17. b3 {[%clk 0:01:40]}  Ne3 {[%clk 0:01:31]} 18. Rfc1 {[%clk 0:01:37]}  h6 {[%clk 0:01:27]} 19. Ne4 {[%clk 0:01:35]}  Nd7 {[%clk 0:01:22]} 20. f5 {[%clk 0:01:31]}  gxf5 {[%clk 0:01:15]} 21. gxf5 {[%clk 0:01:30]}  Rb6 {[%clk 0:01:12]} 22. Kh1 {[%clk 0:01:18]}  Kh8 {[%clk 0:01:10]} 23. Rab1 {[%clk 0:01:13]}  Nd5 {[%clk 0:01:05]} 24. Qh4 {[%clk 0:01:05]}  Kh7 {[%clk 0:00:51]} 25. Ng5+ {[%clk 0:00:58]}  Kg8 {[%clk 0:00:50]} 26. Bxd5 {[%clk 0:00:56]}  hxg5 {[%clk 0:00:49]} 27. Bxg5 {[%clk 0:00:52]}  Nf6 {[%clk 0:00:47]} 28. Bf3 {[%clk 0:00:51]}  Qd7 {[%clk 0:00:42]} 29. Rg1 {[%clk 0:00:43]}  Qxf5 {[%clk 0:00:41]} 30. Bh6 {[%clk 0:00:42]}  Ne8 {[%clk 0:00:37]} 31. Be4 {[%clk 0:00:35]}  Qf6 {[%clk 0:00:18]} 32. Bg5 {[%clk 0:00:30]} 1-0


[Site "https://www.chess.com"]